bitfinex/quotes_SOLUSD_20240906
["timestamp","ask_amount","ask_price","bid_price","bid_amount"]
[1725623481900,7.653,130.67,130.63,26.792]
[1725623482092,7.6539,130.66,130.61,15.0462]
[1725623482297,7.653,130.67,130.61,30.82016287]
[1725623482477,7.653,130.67,130.63,7.6548]
[1725623482678,7.6524,130.68,130.63,7.6548]
[1725623483005,20.0,130.67,130.63,7.6548]
[1725623484306,27.6532,130.67,130.63,7.6548]
[1725623485598,27.6532,130.67,130.62,26.7947]
[1725623485797,7.6536,130.66,130.62,19.1391]
[1725623486001,7.654,130.65,130.61,7.6561]
[1725623486208,7.654,130.65,130.6,7.6567]
[1725623488009,42.9279,130.67,130.61,19.1404]
[1725623488188,35.2746,130.67,130.61,15.77396287]
[1725623488514,20.0,130.67,130.63,26.7925]
[1725623489008,7.6526,130.68,130.64,7.6544]
[1725623489220,20.0,130.67,130.64,7.6544]
[1725623489393,20.0,130.67,130.65,7.6539]
[1725623489584,30.78892956,130.7,130.65,7.6539]
[1725623489913,29.4564,130.7,130.66,7.6532]
[1725623490091,23.0883,130.7,130.66,7.6532]
[1725623490296,1.33251957,130.69,130.66,7.6532]
[1725623490482,1.33251957,130.69,130.65,19.1344]
[1725623490483,1.33251957,130.69,130.67,7.6527]
[1725623491018,7.6506,130.71,130.67,7.6527]
[1725623491501,1.33249528,130.7,130.68,7.6522]
[1725623495221,1.33249528,130.7,130.69,7.6516]
[1725623495915,1.33249528,130.7,130.68,7.652]
[1725623496414,1.33249528,130.7,130.69,7.6516]
[1725623497615,20.0,130.73,130.69,7.6516]
[1725623498202,20.0,130.73,130.7,7.651]
[1725623498428,20.8464205,130.74,130.7,7.651]
[1725623499691,1.33253426,130.73,130.7,7.651]
[1725623501101,1.33253426,130.73,130.69,26.7799]
[1725623502523,1.33253426,130.73,130.7,7.6509]
[1725623503319,1.33253426,130.73,130.71,7.6503]
[1725623504096,1.33253426,130.73,130.7,7.6509]
[1725623505018,21.33253426,130.73,130.7,7.6509]
[1725623505603,28.98183426,130.73,130.69,26.78]
[1725623506523,21.33253426,130.73,130.69,26.78]
[1725623506732,1.33253426,130.73,130.69,26.78]
[1725623508825,8.98193426,130.73,130.69,26.78]
[1725623509130,20.0,130.72,130.69,26.78]
[1725623518715,20.0,130.72,130.7,7.651]
[1725623519029,21.33253426,130.73,130.69,19.1284]
[1725623519331,1.33253426,130.73,130.71,7.6499]
[1725623519713,0.8464205,130.74,130.71,7.6499]
[1725623522328,1.33216387,130.73,130.71,7.6499]
[1725623524134,1.33216387,130.73,130.72,7.6499]
[1725623525144,1.33216387,130.73,130.71,26.7765]
[1725623526843,1.33216387,130.73,130.72,7.6499]
[1725623533549,1.33216387,130.73,130.69,4.3216382]
[1725623533835,1.33216387,130.73,130.68,26.7816]
[1725623534221,1.33216387,130.73,130.65,7.48670095]
[1725623534550,7.6512,130.7,130.65,7.6539]
[1725623534836,20.0,130.69,130.66,7.6533]
[1725623535220,20.0,130.69,130.67,7.6524]
[1725623535736,1.33216387,130.73,130.67,7.6524]
[1725623536037,7.6501,130.72,130.67,7.6524]
[1725623536245,20.0,130.71,130.67,7.6524]
[1725623538939,20.0,130.71,130.68,7.6522]
[1725623539451,20.0,130.71,130.69,7.6514]
[1725623539746,1.33216387,130.73,130.71,7.6504]
[1725623540050,1.33216387,130.73,130.72,7.6499]
[1725623540533,1.33216387,130.73,130.72,9.17950548]
[1725623541047,1.33216387,130.73,130.72,7.6499]
[1725623541643,1.33216387,130.73,130.72,23.42099306]
[1725623541948,1.33216387,130.73,130.72,7.6499]
[1725623543534,1.33216387,130.73,130.72,11.96954854]
[1725623543717,1.33216387,130.73,130.72,7.6499]
[1725623544118,1.33216387,130.73,130.72,11.96944374]
[1725623545287,1.33216387,130.73,130.72,18.09374374]
[1725623545438,1.33216387,130.73,130.72,33.11354374]
[1725623546446,1.33216387,130.73,130.72,35.22625646]
[1725623547248,1.33216387,130.73,130.72,33.11354374]
[1725623547558,1.33216387,130.73,130.72,28.794]
[1725623548048,1.33216387,130.73,130.72,33.11291918]
[1725623548223,1.33216387,130.73,130.72,28.794]
[1725623548922,1.33216387,130.73,130.72,21.1441]
[1725623549148,1.33216387,130.73,130.72,15.0198]
[1725623552224,1.33216387,130.73,130.71,7.6504]
[1725623553960,1.33216387,130.73,130.69,16.1656]
[1725623554126,7.6511,130.7,130.66,30.0929]
[1725623554328,7.6521,130.69,130.66,22.4397]
[1725623554542,7.6527,130.68,130.65,6.42868375]
[1725623554749,7.6527,130.68,130.65,4.31602358]
[1725623554957,7.6527,130.68,130.64,28.72049894]
[1725623554958,7.6527,130.68,130.64,21.24820029]
[1725623555283,7.6527,130.68,130.64,31.1070233]
[1725623555421,7.6527,130.68,130.64,26.7898]
[1725623557649,7.6518,130.69,130.64,26.7898]
[1725623559638,7.6518,130.69,130.65,7.6539]
[1725623559967,40.5993,130.73,130.64,19.1353]
[1725623560284,20.0,130.72,130.64,19.1353]
[1725623560965,7.6514,130.7,130.66,7.6533]
[1725623561160,20.0,130.69,130.66,7.6533]
[1725623564241,27.6519,130.69,130.65,7.6538]
[1725623567059,1.33255848,130.68,130.65,7.6538]
[1725623569253,8.98485848,130.68,130.64,26.7896]
[1725623569879,8.98485848,130.68,130.6,107.3927]
[1725623569880,16.37725848,130.68,130.61,19.1399]
[1725623570053,20.0,130.67,130.61,19.1399]
[1725623570874,7.6544,130.65,130.61,26.7958]
[1725623573169,20.0,130.67,130.61,26.7958]
[1725623573170,7.6546,130.64,130.61,19.1399]
[1725623574287,7.6546,130.64,130.6,7.6569]
[1725623574451,7.6553,130.63,130.59,7.6575]
[1725623575054,7.6548,130.64,130.59,7.6575]
[1725623575481,7.6548,130.64,130.6,7.6568]
[1725623581189,7.6542,130.65,130.61,7.6562]
[1725623581363,20.0,130.64,130.61,7.6562]
[1725623581882,7.6534,130.67,130.63,7.6551]
[1725623582184,27.6534,130.67,130.63,7.6551]
[1725623584977,20.0,130.67,130.64,26.7903]
[1725623585373,8.98475848,130.68,130.64,26.7903]
[1725623585374,1.33255848,130.68,130.65,7.6539]
[1725623586683,21.33255848,130.68,130.65,7.6539]
[1725623590867,28.98485848,130.68,130.64,26.7903]
[1725623591188,7.6529,130.67,130.64,19.136]
[1725623591386,28.98495848,130.68,130.64,26.7905]
[1725623591566,27.6524,130.68,130.64,26.7905]
[1725623591762,1.33275294,130.67,130.64,26.7905]
[1725623593481,8.98565294,130.67,130.64,19.136]
[1725623593976,7.6535,130.66,130.62,7.6556]
[1725623596080,20.0,130.65,130.61,19.1403]
[1725623596576,27.6542,130.65,130.61,26.7966]
[1725623597576,7.6546,130.64,130.61,19.1403]
[1725623599175,7.6546,130.64,130.6,7.6567]
[1725623599377,7.6553,130.63,130.59,9.77729582]
[1725623599594,7.6553,130.63,130.59,7.6574]
[1725623600499,7.6553,130.63,130.58,21.25414186]
[1725623600500,27.6558,130.62,130.58,28.91214186]
[1725623600697,7.6558,130.62,130.58,28.91214186]
[1725623602300,20.0,130.65,130.58,28.91214186]
[1725623602301,7.6554,130.63,130.59,7.6574]
[1725623602508,20.0,130.62,130.59,7.6574]
[1725623602688,20.0,130.62,130.59,9.76714186]
[1725623603405,20.0,130.62,130.59,7.6574]
[1725623603609,20.0,130.62,130.59,9.76409815]
[1725623604382,20.0,130.62,130.6,7.6569]
[1725623604583,20.0,130.63,130.6,7.6569]
[1725623604793,27.6552,130.63,130.6,7.6569]
[1725623606190,20.0,130.63,130.6,7.6569]
[1725623610102,20.0,130.63,130.6,11.97956717]
[1725623610305,20.0,130.63,130.6,26.7991]
[1725623611193,20.0,130.63,130.61,7.6562]
[1725623611515,20.0,130.64,130.61,7.6562]
[1725623612021,20.0,130.64,130.6,19.1422]
[1725623612022,7.6528,130.68,130.63,7.6549]
[1725623612189,7.6528,130.68,130.64,7.6545]
[1725623612597,1.33272654,130.67,130.65,7.6538]
[1725623613001,1.33272654,130.67,130.66,7.6534]
[1725623613201,31.1482624,130.7,130.66,7.6534]
[1725623613908,20.0,130.69,130.66,7.6534]
[1725623615207,1.33259066,130.68,130.66,7.6534]
[1725623617023,8.98499066,130.68,130.64,26.7903]
[1725623617316,20.0,130.67,130.64,19.1358]
[1725623617504,8.98489066,130.68,130.64,26.79]
[1725623617824,20.0,130.67,130.64,26.79]
[1725623618523,20.0,130.67,130.65,7.654]
[1725623618922,21.33259066,130.68,130.65,7.654]
[1725623623116,21.33259066,130.68,130.64,19.1358]
[1725623623416,7.6534,130.66,130.63,4.31606178]
[1725623623613,7.6534,130.66,130.62,24.132]
[1725623623614,20.0,130.65,130.62,28.44931462]
[1725623623823,27.654,130.65,130.61,26.7955]
[1725623624419,7.6546,130.64,130.61,19.1394]
[1725623624596,7.6558,130.62,130.58,50.03246071]
[1725623624801,7.6558,130.62,130.59,4.31871287]
[1725623625025,7.6564,130.61,130.58,19.1441]
[1725623625226,27.6564,130.61,130.58,4.3216684]
[1725623625431,7.6564,130.61,130.57,7.6583]
[1725623628509,7.6559,130.62,130.57,7.6583]
[1725623628813,20.0,130.61,130.57,7.6583]
[1725623629830,20.0,130.61,130.58,7.658]
[1725623630008,20.0,130.62,130.58,7.658]
[1725623630203,20.0,130.62,130.57,15.77494447]
[1725623630412,20.0,130.63,130.61,7.6559]
[1725623630613,20.0,130.65,130.61,7.6559]
[1725623631012,16.46769066,130.68,130.62,7.6557]
[1725623631231,16.46769066,130.68,130.63,7.655]
[1725623632328,27.6529,130.67,130.63,7.655]
[1725623632906,1.33259066,130.68,130.64,7.6541]
[1725623633112,1.33259066,130.68,130.63,19.1372]
[1725623633334,1.33259066,130.68,130.65,7.654]
[1725623635325,21.33259066,130.68,130.65,7.654]
[1725623635634,21.33259066,130.68,130.66,7.6533]
[1725623635839,1.33259066,130.68,130.66,7.6533]
[1725623643049,7.6512,130.7,130.66,7.6533]
[1725623643509,7.6517,130.69,130.65,26.7885]
[1725623644130,20.0,130.68,130.65,26.7885]
[1725623645844,1.33267944,130.67,130.65,26.7885]
[1725623647428,1.33267944,130.67,130.65,19.1346]
[1725623647839,1.33267944,130.67,130.62,23.46294109]
[1725623648022,1.33267944,130.67,130.64,7.6545]
[1725623648224,21.33267944,130.67,130.64,7.6545]
[1725623649537,1.33267944,130.67,130.65,1.53072044]
[1725623649746,1.33267944,130.67,130.66,7.6534]
[1725623652438,1.33267944,130.67,130.65,7.6538]
[1725623652847,1.33267944,130.67,130.66,7.6534]
[1725623653045,1.33267944,130.67,130.65,7.6538]
[1725623655320,1.33267944,130.67,130.64,42.6017]
[1725623655556,19.1393,130.81,130.72,71.4279]
[1725623655733,4.84864961,130.87,130.74,7.6487]
[1725623655734,7.6457,130.8,130.74,7.6487]
[1725623656056,21.6279,130.86,130.75,15.74667697]
[1725623656345,21.6279,130.86,130.8,7.6448]
[1725623657140,21.6279,130.86,130.78,19.1158]
[1725623657343,21.6279,130.86,130.79,7.6453]
[1725623657344,7.6424,130.85,130.79,7.6453]
[1725623657731,21.6279,130.86,130.78,26.7621]
[1725623657954,7.6429,130.84,130.78,26.7621]
[1725623658551,7.6423,130.85,130.79,7.6453]
[1725623658952,7.6423,130.85,130.8,7.6451]
[1725623659124,20.0,130.84,130.8,7.6451]
[1725623659327,20.0,130.84,130.78,26.7616]
[1725623659328,27.643,130.84,130.78,26.7616]
[1725623660548,27.643,130.84,130.79,7.6457]
[1725623661232,20.0,130.84,130.75,19.1199]
[1725623661536,7.6453,130.8,130.75,26.7679]
[1725623661742,20.0,130.79,130.72,25.5264]
[1725623661961,20.0,130.79,130.73,7.6488]
[1725623661962,7.6465,130.78,130.73,7.6488]
[1725623662138,21.6279,130.86,130.72,45.77684498]
[1725623662452,15.3741,130.86,130.82,19.1089]
[1725623662750,6.6084,130.89,130.82,19.1089]
[1725623663358,6.6084,130.89,130.79,50.0]
[1725623663359,21.9752,130.93,130.85,19.1058]
[1725623663527,21.9752,130.93,130.86,7.6417]
[1725623663528,7.6387,130.92,130.86,7.6417]
[1725623664460,21.9752,130.93,130.86,7.6417]
[1725623664643,29.6133,130.93,130.86,7.6417]
[1725623664955,7.6388,130.91,130.86,7.6417]
[1725623665456,20.0,130.9,130.86,7.6417]
[1725623666250,20.0,130.9,130.85,19.1058]
[1725623666758,27.6395,130.9,130.85,19.1058]
[1725623668140,20.0,130.9,130.85,19.1058]
[1725623668354,20.0,130.92,130.85,19.1058]
[1725623671160,0.8464205,130.87,130.84,7.6428]
[1725623671558,0.8464205,130.87,130.83,7.6434]
[1725623672155,20.8464205,130.87,130.83,7.6434]
[1725623672964,20.8464205,130.87,130.83,8.44760851]
[1725623673166,20.8464205,130.87,130.83,0.80420851]
[1725623673467,20.8464205,130.87,130.82,26.7538]
[1725623674338,28.4876205,130.87,130.82,26.7538]
[1725623675265,7.6417,130.86,130.82,19.1099]
[1725623675965,28.4877205,130.87,130.82,19.1099]
[1725623676141,7.6419,130.86,130.82,19.1099]
[1725623678246,7.6419,130.86,130.81,7.6446]
[1725623678566,7.6441,130.82,130.77,68.95944498]
[1725623678754,7.6436,130.83,130.78,7.6464]
[1725623679063,7.6436,130.83,130.79,1.52886922]
[1725623679263,7.6428,130.85,130.8,1.52878071]
[1725623679567,1.33127424,130.82,130.79,7.6456]
[1725623679769,20.0,130.84,130.79,7.6456]
[1725623680061,1.3312477,130.84,130.79,7.6456]
[1725623680362,1.3312477,130.84,130.78,76.7616]
[1725623680761,7.6435,130.83,130.78,76.7616]
[1725623682058,7.6435,130.83,130.78,26.7616]
[1725623696847,20.4386477,130.84,130.75,34.86416198]
[1725623697071,7.6448,130.81,130.76,7.6472]
[1725623697377,7.6458,130.79,130.75,26.7672]
[1725623697557,20.0,130.83,130.75,26.7672]
[1725623697558,20.0,130.83,130.75,19.1193]
[1725623698074,7.6449,130.81,130.76,7.6471]
[1725623698270,20.0,130.83,130.77,19.1172]
[1725623700172,1.33142674,130.82,130.77,19.1172]
[1725623700376,7.6447,130.81,130.77,26.764]
[1725623701344,7.6452,130.8,130.77,19.1172]
[1725623704070,7.6448,130.81,130.77,26.7641]
[1725623706689,35.71492674,130.82,130.76,4.31777889]
[1725623706982,35.71492674,130.82,130.73,6.42252747]
[1725623706983,7.6473,130.77,130.73,6.42252747]
[1725623707151,7.6473,130.77,130.72,15.12728128]
[1725623707152,7.6491,130.74,130.72,2.10296679]
[1725623707471,26.1089,130.81,130.71,6.42475085]
[1725623707472,7.6483,130.75,130.71,6.42475085]
[1725623707673,20.0,130.74,130.71,2.10296679]
[1725623707862,27.6488,130.74,130.71,4.32265821]
[1725623708058,27.6488,130.74,130.7,7.651]
[1725623708263,27.6488,130.74,130.69,11.97479951]
[1725623708449,27.6488,130.74,130.7,5.54575835]
[1725623708645,27.6488,130.74,130.69,11.97479951]
[1725623708862,27.6488,130.74,130.7,5.54575744]
[1725623709064,27.6488,130.74,130.69,11.97479951]
[1725623709268,27.6488,130.74,130.69,13.19756599]
[1725623710274,27.6488,130.74,130.69,7.6515]
[1725623710578,27.6488,130.74,130.68,26.7821]
[1725623710579,7.6494,130.73,130.68,26.7821]
[1725623710874,27.6489,130.74,130.69,7.6515]
[1725623711064,27.6494,130.73,130.68,26.7821]
[1725623711384,7.6494,130.73,130.68,26.7821]
[1725623711673,7.6494,130.73,130.69,7.6516]
[1725623712479,7.6494,130.73,130.68,26.7821]
[1725623712658,27.65,130.72,130.68,26.7821]
[1725623712854,27.65,130.72,130.68,19.13]
[1725623713060,7.6505,130.71,130.66,7.6533]
[1725623713364,27.6511,130.7,130.65,26.7878]
[1725623715160,27.6511,130.7,130.66,7.6534]
[1725623716059,20.0,130.7,130.67,19.1314]
[1725623717062,20.0,130.7,130.67,26.784]
[1725623719388,20.0,130.7,130.67,19.1314]
[1725623720491,1.33261743,130.69,130.67,19.1314]
[1725623721087,1.33261743,130.69,130.67,26.7837]
[1725623722185,1.33261743,130.69,130.68,7.6522]
[1725623735491,1.33261743,130.69,130.68,57.6522]
[1725623736711,1.33261743,130.69,130.68,7.6522]
[1725623739396,1.33261743,130.69,130.67,19.1314]
[1725623739807,1.33261743,130.69,130.67,26.7842]
[1725623742201,1.33261743,130.69,130.68,7.6522]
[1725623743090,1.33261743,130.69,130.68,57.6522]
[1725623743604,1.33261743,130.69,130.68,63.20332177]
[1725623744008,1.33261743,130.69,130.68,102.60775878]
[1725623744687,1.33261743,130.69,130.68,63.20332177]
[1725623745383,1.33261743,130.69,130.68,67.52918171]
[1725623745901,1.33261743,130.69,130.68,61.97805994]
[1725623746200,1.33261743,130.69,130.68,67.52715583]
[1725623747195,1.33261743,130.69,130.68,61.97851541]
[1725623747406,1.33261743,130.69,130.68,67.52813245]
[1725623747596,1.33261743,130.69,130.68,61.97851541]
[1725623747933,1.33261743,130.69,130.68,57.6522]
[1725623748806,1.33261743,130.69,130.68,67.53067071]
[1725623749111,1.33261743,130.69,130.68,63.20326967]
[1725623749305,1.33261743,130.69,130.68,67.53089548]
[1725623749625,1.33261743,130.69,130.68,69.63751056]
[1725623751208,1.33261743,130.69,130.68,77.12987863]
[1725623751421,1.33261743,130.69,130.68,59.75881508]
[1725623751592,1.33261743,130.69,130.68,77.12306904]
[1725623751808,1.33261743,130.69,130.68,81.48826425]
[1725623754508,1.33261743,130.69,130.68,62.01801626]
[1725623754829,1.33261743,130.69,130.68,75.02369067]
[1725623755039,1.33261743,130.69,130.68,81.4981982]
[1725623755399,1.33261743,130.69,130.68,122.4324242]
[1725623755701,1.33261743,130.69,130.68,140.90263521]
[1725623757129,1.33261743,130.69,130.68,195.43232474]
[1725623757427,1.33261743,130.69,130.68,262.85183521]
[1725623757801,1.33261743,130.69,130.68,262.84945184]
[1725623759003,1.33261743,130.69,130.68,134.42501483]
[1725623759225,1.33261743,130.69,130.68,104.42501483]
[1725623761117,1.33261743,130.69,130.68,88.11221483]
[1725623763024,1.33261743,130.69,130.68,89.6419455]
[1725623763335,1.33261743,130.69,130.68,135.6619455]
[1725623763518,1.33261743,130.69,130.68,89.6419455]
[1725623763717,1.33261743,130.69,130.68,88.11221483]
[1725623764028,1.33261743,130.69,130.68,118.32266853]
[1725623764218,1.33261743,130.69,130.68,117.39878146]
[1725623764544,1.33261743,130.69,130.68,153.8719853]
[1725623766119,1.33261743,130.69,130.68,123.8719853]
[1725623767130,1.33261743,130.69,130.68,112.0525224]
[1725623767439,1.33261743,130.69,130.68,112.053529]
[1725623767617,1.33261743,130.69,130.68,123.87431537]
[1725623767823,1.33261743,130.69,130.68,117.40111153]
[1725623768032,1.33261743,130.69,130.68,123.87548927]
[1725623768543,1.33261743,130.69,130.68,103.87548927]
[1725623768837,1.33261743,130.69,130.68,123.87548927]
[1725623769029,1.33261743,130.69,130.68,153.87548927]
[1725623770527,1.33261743,130.69,130.68,123.87548927]
[1725623771231,1.33261743,130.69,130.68,192.89548927]
[1725623771437,1.33261743,130.69,130.68,222.89548927]
[1725623771933,1.743e-05,130.69,130.68,222.89548927]
[1725623772132,16.6336,130.77,130.68,222.89548927]
[1725623772133,16.6336,130.77,130.76,7.6475]
[1725623772333,16.6336,130.77,130.76,13.19912706]
[1725623773517,30.0549,130.81,130.77,7.6468]
[1725623775044,20.0,130.8,130.77,7.6468]
[1725623776859,20.0,130.8,130.78,7.6462]
[1725623777048,20.0,130.8,130.77,26.7635]
[1725623777844,7.6459,130.79,130.75,5.5407539]
[1725623778046,27.6465,130.78,130.74,26.7696]
[1725623778420,7.6471,130.77,130.73,7.6492]
[1725623778622,7.6471,130.77,130.72,11.97370032]
[1725623778928,7.6471,130.77,130.72,11.9742786]
[1725623779326,7.6471,130.77,130.73,7.6491]
[1725623780738,15.199,130.76,130.73,7.6491]
[1725623782442,15.199,130.76,130.74,0.4049956]
[1725623783116,15.199,130.76,130.73,7.6491]
[1725623785470,7.6482,130.75,130.72,5.5501953]
[1725623785654,27.6482,130.75,130.71,26.7753]
[1725623786325,27.6482,130.75,130.71,31.10250465]
[1725623786525,27.6482,130.75,130.71,26.7753]
[1725623787225,27.6482,130.75,130.72,5.55093336]
[1725623787425,27.6482,130.75,130.71,26.7753]
[1725623787769,20.0,130.75,130.72,5.55093942]
[1725623787925,20.0,130.75,130.71,26.7753]
[1725623788125,20.0,130.75,130.72,5.55099068]
[1725623788440,20.0,130.75,130.71,21.23151648]
[1725623788648,20.0,130.75,130.73,7.6491]
[1725623792151,20.0,130.75,130.72,7.6497]
[1725623793132,20.0,130.75,130.73,7.6492]
[1725623794238,21.33185875,130.75,130.73,7.6492]
[1725623794746,21.33185875,130.75,130.72,7.6497]
[1725623796327,21.33185875,130.75,130.73,9.17889043]
[1725623797123,1.33185875,130.75,130.73,1.52969043]
[1725623797362,1.33185875,130.75,130.74,9.17831363]
[1725623798447,1.33185875,130.75,130.74,7.6487]
[1725623799656,1.33185875,130.75,130.73,26.7721]
[1725623801056,1.33185875,130.75,130.74,7.6487]
[1725623803660,1.33185875,130.75,130.74,9.17824312]
[1725623804534,1.33185875,130.75,130.74,7.6487]
[1725623804948,1.33185875,130.75,130.73,26.7719]
[1725623805955,1.33185875,130.75,130.73,19.123]
[1725623806555,1.33185875,130.75,130.73,26.7723]
[1725623812944,1.33185875,130.75,130.72,7.6497]
[1725623813162,1.33185875,130.75,130.73,5.54162865]
[1725623813462,21.33185875,130.75,130.72,7.6497]
[1725623813666,21.33185875,130.75,130.73,5.54193807]
[1725623813856,21.33185875,130.75,130.72,7.6497]
[1725623815491,21.33185875,130.75,130.73,5.54199869]
[1725623815649,21.33185875,130.75,130.72,7.6497]
[1725623815843,21.33185875,130.75,130.73,5.5419576]
[1725623816047,21.33185875,130.75,130.72,7.6497]
[1725623818475,7.6488,130.74,130.7,26.7774]
[1725623818678,7.6488,130.74,130.71,4.32127018]
[1725623818890,7.6488,130.74,130.7,26.7774]
[1725623819170,7.6488,130.74,130.71,4.32140008]
[1725623819171,1.33223047,130.73,130.71,4.32140008]
[1725623819362,1.33223047,130.73,130.7,26.7774]
[1725623819559,1.33223047,130.73,130.71,4.32142402]
[1725623819763,1.33223047,130.73,130.7,26.7774]
[1725623819959,1.33223047,130.73,130.71,4.31969468]
[1725623820168,1.33223047,130.73,130.7,26.7774]
[1725623820461,1.33223047,130.73,130.71,12.57168498]
[1725623820771,1.33223047,130.73,130.72,11.96722873]
[1725623833761,27.6466,130.78,130.73,7.649]
[1725623834086,7.6471,130.77,130.74,4.31732873]
[1725623834290,7.6471,130.77,130.73,7.649]
[1725623834486,7.6471,130.77,130.74,4.31755939]
[1725623834688,7.6471,130.77,130.73,7.649]
[1725623834987,7.6471,130.77,130.74,4.31702505]
[1725623835193,7.6471,130.77,130.73,7.649]
[1725623835375,7.6471,130.77,130.74,4.31710209]
[1725623835695,7.6471,130.77,130.73,7.649]
[1725623835898,7.6471,130.77,130.74,4.31714678]
[1725623836073,7.6471,130.77,130.73,7.649]
[1725623836276,7.6471,130.77,130.74,4.31714678]
[1725623836488,7.6471,130.77,130.73,7.649]
[1725623836792,7.6471,130.77,130.74,4.31714616]
[1725623837107,7.6471,130.77,130.73,7.649]
[1725623837291,7.6471,130.77,130.74,4.3181925]
[1725623837469,7.6471,130.77,130.73,7.649]
[1725623837665,7.6471,130.77,130.74,4.3182289]
[1725623837870,7.6471,130.77,130.73,7.649]
[1725623838102,7.6471,130.77,130.74,4.31823187]
[1725623838307,7.6471,130.77,130.73,7.649]
[1725623838599,7.6471,130.77,130.74,4.31843059]
[1725623838891,7.6471,130.77,130.73,7.649]
[1725623839084,7.6471,130.77,130.74,4.31842826]
[1725623839285,7.6471,130.77,130.73,7.649]
[1725623839472,7.6471,130.77,130.74,4.31842826]
[1725623839673,7.6471,130.77,130.73,7.649]
[1725623839872,7.6471,130.77,130.74,4.3184126]
[1725623840083,7.6471,130.77,130.73,7.649]
[1725623840273,7.6471,130.77,130.74,4.3184126]
[1725623840470,27.6465,130.78,130.74,7.6486]
[1725623840694,27.6465,130.78,130.75,4.31769275]
[1725623840995,20.0,130.78,130.76,4.31668455]
[1725623841172,20.0,130.78,130.75,7.6481]
[1725623841493,21.33167868,130.78,130.76,4.31646645]
[1725623841798,21.33167868,130.78,130.75,7.6481]
[1725623841979,21.33167868,130.78,130.76,4.31604725]
[1725623842183,1.33167868,130.78,130.77,11.96088243]
[1725623843595,1.33167868,130.78,130.77,4.31388243]
[1725623844580,1.33167868,130.78,130.76,26.766]
[1725623844879,1.33167868,130.78,130.77,4.31308793]
[1725623845082,1.33167868,130.78,130.76,26.766]
[1725623847593,1.33167868,130.78,130.76,19.1187]
[1725623847772,1.33167868,130.78,130.76,26.7662]
[1725623850784,1.33167868,130.78,130.77,7.647]
[1725623863202,1.33167868,130.78,130.74,11.96343525]
[1725623863411,1.33167868,130.78,130.73,19.1221]
[1725623863412,1.33167868,130.78,130.73,26.7713]
[1725623864322,7.6473,130.77,130.73,26.7713]
[1725623864483,20.0,130.76,130.73,26.7713]
[1725623865004,1.33206981,130.75,130.73,26.7713]
[1725623868507,7.6492,130.74,130.7,26.7772]
[1725623868884,20.0,130.73,130.7,26.7772]
[1725623872615,27.6495,130.73,130.7,19.1265]
[1725623872911,27.6495,130.73,130.68,11.97422634]
[1725623873223,27.6495,130.73,130.68,7.652]
[1725623876529,27.6495,130.73,130.69,7.6516]
[1725623881023,7.6499,130.72,130.68,7.652]
[1725623881505,27.6507,130.71,130.67,26.7837]
[1725623881700,20.0,130.71,130.65,7.6535]
[1725623881905,1.332,130.67,130.64,19.1353]
[1725623882512,1.332,130.67,130.65,7.654]
[1725623883802,1.332,130.67,130.64,19.1353]
[1725623884023,1.332,130.67,130.64,26.7898]
[1725623884896,8.9849,130.67,130.64,19.1353]
[1725623886214,20.0,130.66,130.62,7.6556]
[1725623891130,27.6535,130.66,130.62,7.6556]
[1725623892003,20.0,130.66,130.63,7.6552]
[1725623892620,27.6535,130.66,130.62,7.6556]
[1725623893601,7.654,130.65,130.61,26.7961]
[1725623893805,20.0,130.64,130.61,26.7961]
[1725623894222,27.6549,130.64,130.61,19.14]
[1725623897110,27.6549,130.64,130.61,18.87331861]
[1725623897632,16.6356,130.63,130.61,18.87331861]
[1725623897930,7.6569,130.6,130.56,7.6589]
[1725623898138,7.6569,130.6,130.55,19.1483]
[1725623898139,20.0,130.59,130.55,26.8081]
[1725623898319,7.657,130.6,130.55,26.8081]